fUSD/lending_fUSD_20240213
["ID","MTS","AMOUNT","RATE_DAILY","PERIOD"]
[313907905,1707809445612,-500.0,0.00029082,7]
[313907906,1707809445623,-500.0,0.00029082,2]
[313907907,1707809445633,-556.07183139,0.00029082,2]
[313907908,1707809445642,-607.40788422,0.00029082,2]
[313907909,1707809445651,-500.0,0.00029082,2]
[313907910,1707809445660,-500.0,0.00029082,2]
[313907911,1707809445670,-500.0,0.00029082,2]
[313907912,1707809445678,-500.0,0.00029082,2]
[313907913,1707809445688,-281.88820774,0.00029082,2]
[313907914,1707809445697,-500.0,0.00029082,2]
[313907915,1707809445706,-500.0,0.00029082,2]
[313907916,1707809445716,-500.0,0.00029082,2]
[313907917,1707809445725,-500.0,0.00029082,2]
[313907918,1707809445734,-500.0,0.00029082,2]
[313907919,1707809445743,-500.0,0.00029082,2]
[313907920,1707809445753,-500.0,0.00029082,2]
[313907922,1707809445762,-500.0,0.00029082,2]
[313907923,1707809445771,-500.0,0.00029082,2]
[313907924,1707809445780,-500.0,0.00029082,2]
[313907925,1707809445790,-500.0,0.00029082,2]
[313907926,1707809445798,-500.0,0.00029082,2]
[313907927,1707809445807,-500.0,0.00029082,2]
[313907928,1707809445816,-500.0,0.00029082,2]
[313907929,1707809445826,-500.0,0.00029082,2]
[313907930,1707809445835,-500.0,0.00029082,2]
[313907931,1707809445844,-500.0,0.00029082,2]
[313907932,1707809445853,-500.0,0.00029082,2]
[313907933,1707809445862,-500.0,0.00029082,2]
[313907934,1707809445871,-500.0,0.00029082,2]
[313907935,1707809445881,-530.87632139,0.00029082,2]
[313907936,1707809445890,-500.0,0.00029082,2]
[313907937,1707809445899,-500.0,0.00029082,2]
[313907938,1707809445908,-150.0,0.00029082,2]
[313907939,1707809445917,-500.0,0.00029082,2]
[313907940,1707809445926,-500.0,0.00029082,2]
[313907941,1707809445935,-500.0,0.00029082,2]
[313907942,1707809445944,-270.4539905,0.00029082,2]
[313907943,1707809445953,-500.0,0.00029082,2]
[313907944,1707809445962,-226.31109976,0.00029082,2]
[313907945,1707809445971,-500.0,0.00029082,2]
[313907946,1707809445980,-500.0,0.00029082,2]
[313907947,1707809445989,-520.36805467,0.00029082,2]
[313907948,1707809445998,-515.41640257,0.00029082,2]
[313907949,1707809446008,-500.0,0.00029082,2]
[313907950,1707809446017,-500.0,0.00029082,2]
[313907951,1707809446026,-400.2486481,0.00029082,2]
[313907952,1707809446035,-500.0,0.00029082,2]
[313907953,1707809446045,-596.13254473,0.00029082,2]
[313907954,1707809446054,-500.0,0.00029082,2]
[313907955,1707809446063,-500.0,0.00029082,2]
[313907956,1707809446072,-524.56973147,0.00029082,2]
[313907957,1707809446081,-500.0,0.00029082,2]
[313907958,1707809446090,-500.0,0.00029082,2]
[313907959,1707809446099,-500.0,0.00029082,2]
[313907960,1707809446109,-588.83707308,0.00029082,2]
[313907961,1707809446118,-500.0,0.00029082,2]
[313907962,1707809446127,-500.0,0.00029082,2]
[313907963,1707809446136,-500.0,0.00029082,2]
[313907964,1707809446145,-500.0,0.00029082,2]
[313907965,1707809446154,-500.0,0.00029082,2]
[313907966,1707809446163,-500.0,0.00029082,2]
[313907967,1707809446172,-500.0,0.00029082,2]
[313907968,1707809446182,-500.0,0.00029082,2]
[313907969,1707809446191,-500.0,0.00029082,2]
[313907970,1707809446203,-500.0,0.00029082,2]
[313907971,1707809446213,-500.0,0.00029082,2]
[313907972,1707809446222,-500.0,0.00029082,2]
[313907973,1707809446232,-509.59200334,0.00029082,2]
[313907974,1707809446242,-500.0,0.00029082,2]
[313907975,1707809446251,-500.0,0.00029082,2]
[313907976,1707809446259,-500.0,0.00029082,2]
[313907977,1707809446269,-500.0,0.00029082,2]
[313907978,1707809446279,-500.0,0.00029082,2]
[313907979,1707809446288,-500.0,0.00029082,2]
[313907980,1707809446297,-500.0,0.00029082,2]
[313907981,1707809446306,-500.0,0.00029082,2]
[313907982,1707809446315,-500.0,0.00029082,2]
[313907983,1707809446324,-486.47883203,0.00029082,2]
[313907984,1707809446333,-500.0,0.00029082,2]
[313907985,1707809446342,-500.0,0.00029082,2]
[313907986,1707809446351,-500.0,0.00029082,2]
[313907987,1707809446360,-500.0,0.00029082,2]
[313907988,1707809446370,-500.0,0.00029082,2]
[313907989,1707809446380,-500.0,0.00029082,2]
[313907990,1707809446390,-500.0,0.00029082,2]
[313907991,1707809446399,-500.0,0.00029082,2]
[313907992,1707809446408,-500.0,0.00029082,2]
[313907993,1707809446417,-545.65699778,0.00029082,2]
[313907994,1707809446426,-500.0,0.00029082,2]
[313907995,1707809446435,-500.0,0.00029082,2]
[313907996,1707809446444,-500.0,0.00029082,2]
[313907997,1707809446453,-500.0,0.00029082,2]
[313907998,1707809446463,-749.03,0.00029082,2]
[313907999,1707809446471,-500.0,0.00029082,2]
[313908000,1707809446481,-500.0,0.00029082,2]
[313908001,1707809446490,-500.0,0.00029082,2]
[313908002,1707809446499,-500.0,0.00029082,2]
[313908003,1707809446508,-500.0,0.00029082,2]
[313908004,1707809446518,-500.0,0.00029082,2]
[313908005,1707809446527,-599.58,0.00029082,2]
[313908006,1707809446536,-500.0,0.00029082,2]
[313908007,1707809446545,-500.0,0.00029082,2]
[313908008,1707809446554,-500.0,0.00029082,2]
[313908009,1707809446563,-500.0,0.00029082,2]
[313908010,1707809446573,-500.0,0.00029082,2]
[313908011,1707809446583,-500.0,0.00029082,2]
[313908012,1707809446592,-500.0,0.00029082,2]
[313908013,1707809446601,-500.0,0.00029082,2]
[313908014,1707809446610,-500.0,0.00029082,2]
[313908015,1707809446619,-500.0,0.00029082,2]
[313908016,1707809446629,-500.0,0.00029082,2]
[313908017,1707809446638,-500.0,0.00029082,2]
[313908018,1707809446649,-500.0,0.00029082,2]
[313908019,1707809446659,-500.0,0.00029082,2]
[313908020,1707809446668,-500.0,0.00029082,2]
[313908021,1707809446677,-500.0,0.00029082,2]
[313908022,1707809446686,-500.0,0.00029082,2]
[313908023,1707809446696,-500.0,0.00029082,2]
[313908024,1707809446705,-500.0,0.00029082,2]
[313908025,1707809446714,-500.0,0.00029082,2]
[313908026,1707809446723,-434.27188239,0.00029082,2]
[313908027,1707809446733,-500.0,0.00029082,2]
[313908028,1707809446742,-500.0,0.00029082,2]
[313908029,1707809446751,-500.0,0.00029082,2]
[313908030,1707809446760,-500.0,0.00029082,2]
[313908031,1707809446769,-500.0,0.00029082,2]
[313908032,1707809446778,-500.0,0.00029082,2]
[313908033,1707809446787,-500.0,0.00029082,2]
[313908034,1707809446797,-500.0,0.00029082,2]
[313908035,1707809446805,-500.0,0.00029082,2]
[313908036,1707809446814,-500.0,0.00029082,2]
[313908037,1707809446823,-500.0,0.00029082,2]
[313908038,1707809446832,-500.0,0.00029082,2]
[313908039,1707809446841,-500.0,0.00029082,2]
[313908040,1707809446850,-235.39935837,0.00029082,2]
[313908041,1707809446859,-500.0,0.00029082,2]
[313908042,1707809446869,-500.0,0.00029082,2]
[313908043,1707809446879,-500.0,0.00029082,2]
[313908044,1707809446888,-557.49,0.00029082,2]
[313908045,1707809446896,-538.94249897,0.00029082,2]
[313908046,1707809446905,-500.0,0.00029082,2]
[313908047,1707809446914,-500.0,0.00029082,2]
[313908048,1707809446923,-1908.66,0.00029082,2]
[313908049,1707809446932,-500.0,0.00029082,2]
[313908050,1707809446941,-545.85,0.00029082,2]
[313908051,1707809446950,-500.0,0.00029082,2]
[313908052,1707809446959,-500.0,0.00029082,2]
[313908053,1707809446969,-500.0,0.00029082,2]
[313908054,1707809446978,-500.0,0.00029082,2]
[313908055,1707809446987,-500.0,0.00029082,2]
[313908056,1707809446996,-500.0,0.00029082,2]
[313908057,1707809447005,-500.0,0.00029082,2]
[313908058,1707809447013,-510.55,0.00029082,2]
[313908059,1707809447022,-500.0,0.00029082,2]
[313908060,1707809447031,-500.0,0.00029082,2]
[313908061,1707809447040,-553.85,0.00029082,2]
[313908062,1707809447049,-500.0,0.00029082,2]
[313908063,1707809447058,-500.0,0.00029082,2]
[313908064,1707809447067,-500.0,0.00029082,2]
[313908065,1707809447076,-500.0,0.00029082,2]
[313908066,1707809447086,-500.0,0.00029082,2]
[313908067,1707809447095,-500.0,0.00029082,2]
[313908068,1707809447104,-500.0,0.00029082,2]
[313908069,1707809447113,-514.82813539,0.00029082,2]
[313908070,1707809447122,-500.0,0.00029082,2]
[313908071,1707809447132,-500.0,0.00029082,2]
[313908072,1707809447141,-521.46840385,0.00029082,2]
[313908073,1707809447150,-500.0,0.00029082,2]
[313908074,1707809447159,-500.0,0.00029082,2]
[313908075,1707809447168,-548.6292419,0.00029082,2]
[313908076,1707809447178,-500.0,0.00029082,2]
[313908077,1707809447189,-500.0,0.00029082,2]
[313908078,1707809447200,-500.0,0.00029082,2]
[313908079,1707809447211,-500.0,0.00029082,2]
[313908080,1707809447221,-643.69,0.00029082,2]
[313908081,1707809447232,-500.0,0.00029082,2]
[313908082,1707809447242,-500.0,0.00029082,2]
[313908083,1707809447251,-529.65992867,0.00029082,2]
[313908084,1707809447260,-500.0,0.00029082,2]
[313908085,1707809447269,-500.0,0.00029082,2]
[313908086,1707809447278,-500.0,0.00029082,2]
[313908087,1707809447287,-916.0,0.00029082,2]
[313908088,1707809447296,-500.0,0.00029082,2]
[313908089,1707809447305,-500.0,0.00029082,2]
[313908090,1707809447315,-500.0,0.00029082,2]
[313908091,1707809447325,-500.0,0.00029082,2]
[313908092,1707809447335,-500.0,0.00029082,2]
[313908093,1707809447344,-500.0,0.00029082,2]
[313908094,1707809447354,-500.0,0.00029082,2]
[313908095,1707809447364,-500.0,0.00029082,2]
[313908096,1707809447373,-159.44986088,0.00029099,2]
[313908097,1707809447383,-5367.02,0.000291,2]
[313908098,1707809447393,-57530.53401444,0.000291,2]
[313908099,1707809447569,-397.20681402,0.00028767,2]
[313908100,1707809447719,-102.79318598,0.00028767,2]
[313908101,1707809447729,-1887.98502513,0.00028767,2]
[313908102,1707809447741,-2027.00497487,0.00028767,2]
[313908103,1707809447752,-500.0,0.00028808,2]
[313908104,1707809447761,-500.0,0.00028999,2]
[313908105,1707809447771,-500.0,0.00029029,2]
[313908106,1707809447781,-163.70864537,0.00029041,2]
[313908107,1707809448099,-256.85596,0.00029041,2]
[313908108,1707809448111,-79.43539463,0.00029041,2]
[313908109,1707809448121,-3914.99,0.00029041,2]
[313908110,1707809448133,-500.0,0.00029082,2]
[313908111,1707809448143,-31457.10598556,0.000291,2]
[313908112,1707809448154,-4074.04,0.000291,2]
[313908113,1707809448165,-164031.19,0.000291,2]
[313908114,1707809448176,-85052.94,0.000291,2]
[313908115,1707809448186,-313.45371676,0.00029128,2]
[313908116,1707809448198,-4694.71398521,0.00029128,2]
[313908117,1707809448211,-155.21896188,0.00029128,2]
[313908118,1707809448222,-6492.98959464,0.00029129,2]
[313908119,1707809448233,-316.6164515,0.00029129,2]
[313908120,1707809448243,-130015.56271566,0.00029129,2]
[313908121,1707809448253,-500.0,0.00029129,2]
[313908122,1707809448264,-578.70563047,0.00029129,2]
[313908123,1707809448276,-500.0,0.00029129,2]
[313908124,1707809448285,-500.0,0.00029129,2]
[313908125,1707809448295,-249.21210185,0.00029129,2]
[313908126,1707809448305,-500.0,0.00029129,2]
[313908127,1707809448314,-500.0,0.00029129,2]
[313908128,1707809448325,-500.0,0.00029129,2]
[313908129,1707809448336,-247.81397405,0.00029129,2]
[313908130,1707809448347,-500.0,0.00029129,2]
[313908131,1707809448356,-500.0,0.00029129,2]
[313908132,1707809448366,-500.0,0.00029129,2]
[313908133,1707809448375,-500.0,0.00029129,2]
[313908134,1707809448385,-500.0,0.00029129,2]
[313908135,1707809448394,-577.06380597,0.00029129,2]
[313908136,1707809448403,-500.0,0.00029129,2]
[313908137,1707809448413,-500.0,0.00029129,2]
[313908138,1707809448423,-500.0,0.00029129,2]
[313908139,1707809448432,-500.0,0.00029129,2]
[313908140,1707809448441,-348.12987014,0.00029129,2]
[313908141,1707809448451,-500.0,0.00029129,2]
[313908142,1707809448460,-500.0,0.00029129,2]
[313908143,1707809448470,-500.0,0.00029129,2]
[313908144,1707809448480,-500.0,0.00029129,2]
[313908145,1707809448489,-500.0,0.00029129,2]
[313908146,1707809448499,-600.0,0.00029129,2]
[313908147,1707809448508,-500.0,0.00029129,2]
[313908148,1707809448518,-500.0,0.00029129,2]
[313908149,1707809448527,-500.0,0.00029129,2]
[313908150,1707809448537,-500.0,0.00029129,2]
[313908151,1707809448547,-166.99808911,0.00029129,2]
[313908152,1707809448557,-500.0,0.00029129,2]
[313908153,1707809448566,-500.0,0.00029129,2]
[313908154,1707809448576,-500.0,0.00029129,2]
[313908155,1707809448586,-500.0,0.00029129,2]
[313908156,1707809448596,-500.0,0.00029129,2]
[313908157,1707809448605,-500.0,0.00029129,2]
[313908158,1707809448616,-500.0,0.00029129,2]
[313908159,1707809448627,-500.0,0.00029129,2]
[313908160,1707809448637,-500.0,0.00029129,2]
[313908161,1707809448646,-500.0,0.00029129,2]
[313908162,1707809448658,-500.0,0.00029129,2]
[313908163,1707809448668,-500.0,0.00029129,2]
[313908164,1707809448678,-500.0,0.00029129,2]
[313908165,1707809448688,-500.0,0.00029129,2]
[313908166,1707809448697,-500.0,0.00029129,2]
[313908167,1707809448707,-355.96818283,0.00029129,2]
[313908168,1707809448717,-320.62221584,0.00029129,2]
[313908169,1707809448726,-520.62221584,0.00029129,2]
[313908170,1707809448736,-500.0,0.00029129,2]
[313908171,1707809448746,-248.11850364,0.00029129,2]
[313908172,1707809448755,-150.0,0.00029129,2]
[313908173,1707809448765,-150.0,0.00029129,2]
[313908174,1707809448774,-150.0,0.00029129,2]
[313908175,1707809448783,-281922.31089092,0.0002913,2]
[313908176,1707809448826,-2306.1,0.0002913,2]
[313908177,1707809448875,-7937.15464023,0.0002913,2]
[313908178,1707809449739,-2007.09449177,0.00028766,2]
[313908179,1707809449783,-382.51727014,0.00028766,2]
[313908180,1707809449809,-927.58743145,0.00028766,2]
[313908181,1707809449819,-500.0,0.00029128,2]
[313908182,1707809449828,-500.0,0.00029128,2]
[313908183,1707809449837,-500.0,0.00029128,2]
[313908184,1707809449847,-500.0,0.00029128,2]
[313908185,1707809449856,-500.0,0.00029128,2]
[313908186,1707809449866,-500.0,0.00029128,2]
[313908187,1707809449876,-500.0,0.00029128,2]
[313908188,1707809449886,-500.0,0.00029128,2]
[313908189,1707809449895,-500.0,0.00029128,2]
[313908190,1707809449904,-500.0,0.00029128,2]
[313908191,1707809449914,-500.0,0.00029128,2]
[313908192,1707809449923,-500.0,0.00029128,2]
[313908193,1707809449933,-500.0,0.00029128,2]
[313908194,1707809449942,-500.0,0.00029128,2]
[313908195,1707809449952,-500.0,0.00029128,2]
[313908196,1707809449962,-500.0,0.00029128,2]
[313908197,1707809449971,-500.0,0.00029128,2]
[313908198,1707809449980,-500.0,0.00029128,2]
[313908199,1707809449990,-500.0,0.00029128,2]
[313908200,1707809449999,-500.0,0.00029128,2]
[313908201,1707809450008,-500.0,0.00029128,2]
[313908202,1707809450018,-500.0,0.00029128,2]
[313908203,1707809450027,-176.56905696,0.00029128,2]
[313908204,1707809450037,-500.0,0.00029128,2]
[313908205,1707809450047,-83.51981454,0.00029128,2]
[313908206,1707809450070,-416.48018546,0.00029128,2]
[313908207,1707809450079,-500.0,0.00029128,2]
[313908208,1707809450088,-500.0,0.00029128,2]
[313908209,1707809450098,-500.0,0.00029128,2]
[313908210,1707809450108,-500.0,0.00029128,2]
[313908211,1707809450118,-500.0,0.00029128,2]
[313908212,1707809450127,-500.0,0.00029128,2]
[313908213,1707809450137,-500.0,0.00029128,2]
[313908214,1707809450147,-500.0,0.00029128,2]
[313908215,1707809450156,-500.0,0.00029128,2]
[313908216,1707809450167,-500.0,0.00029128,2]
[313908217,1707809450176,-500.0,0.00029128,2]
[313908218,1707809450187,-500.0,0.00029128,2]
[313908219,1707809450198,-500.0,0.00029128,2]
[313908220,1707809450208,-500.0,0.00029128,2]
[313908221,1707809450218,-500.0,0.00029128,2]
[313908222,1707809450227,-500.0,0.00029128,2]
[313908223,1707809450236,-500.0,0.00029128,2]
[313908224,1707809450247,-500.0,0.00029128,2]
[313908225,1707809450257,-500.0,0.00029128,2]
[313908226,1707809450266,-415.0660354,0.00029128,2]
[313908227,1707809450275,-18016.61466243,0.0002913,2]
[313908228,1707809450391,-500.0,0.00029128,2]
[313908229,1707809450400,-324.70516459,0.0002913,2]
[313908230,1707809450412,-2031.42731746,0.0002913,2]
[313908231,1707809450426,-661.35701049,0.0002913,2]
[313908232,1707809450442,-500.0,0.00029128,2]
[313908233,1707809450452,-34425.62231775,0.0002913,2]
[313908234,1707810027976,809.85,0.00024216,2]
[313908235,1707810148718,187.77126087,0.0002385,2]
[313908236,1707810152572,690.62594754,0.0002385,2]
[313908237,1707810323737,350.0,0.00025,3]
[313908346,1707810518065,769.35,0.00023377,2]
[313908372,1707810632136,-250.0,0.00025074,2]
[313908375,1707810632146,-2635.96768724,0.00025139,2]
[313908378,1707810632156,-274.97631391,0.0002514,2]
[313908380,1707810632168,-350.30513586,0.0002514,2]
[313908381,1707810632178,-161.98410321,0.00025141,2]
[313908382,1707810632190,-55.36472905,0.00025141,2]
[313908383,1707810632200,-1016.97,0.00025142,2]
[313908384,1707810632210,-498.15545369,0.00025176,2]
[313908385,1707810632219,-386.69622014,0.00025176,2]
[313908386,1707810632229,-500.0,0.00025177,2]
[313908387,1707810632238,-422.19790322,0.00025269,2]
[313908388,1707810632248,-1707.84276846,0.0002527,2]
[313908389,1707810632281,-603.26280652,0.0002527,2]
[313908390,1707810632292,-4409.27439857,0.0002527,2]
[313908391,1707810632304,-1107.26557114,0.0002527,2]
[313908392,1707810632313,-2705.0,0.00025273,2]
[313908393,1707810632323,-217.96215078,0.000253,2]
[313908394,1707810632333,-156.79080948,0.00025395,2]
[313908395,1707810632342,-601.07,0.0002542,2]
[313908396,1707810632352,-809.64969559,0.00025426,2]
[313908397,1707810632372,-450.037073,0.00025426,2]
[313908398,1707810632393,-1050.19323141,0.00025426,2]
[313908399,1707810632402,-136.64085956,0.00025492,2]
[313908400,1707810632414,-19.88949236,0.00025492,2]
[313908401,1707810632423,-204.60111946,0.00025492,2]
[313908402,1707810632432,-205.9753487,0.00025492,2]
[313908403,1707810632442,-377.25718374,0.00025493,2]
[313908404,1707810632451,-365.1406152,0.00025494,2]
[313908405,1707810632484,-8324.72428935,0.00025494,2]
[313908411,1707810632546,-312.137288,0.00025494,2]
[313908455,1707810638145,-155.9802843,0.00025492,2]
[313908456,1707810638154,-249.07660339,0.00025493,2]
[313908457,1707810638163,-7280.26182163,0.00025494,2]
[313908458,1707810638174,-1476.10944023,0.00025494,2]
[313908459,1707810638185,-1814.62207808,0.00025494,2]
[313908460,1707810638483,-70417.7348123,0.00025494,2]
[313908461,1707810638494,-25675.43171373,0.00025494,2]
[313908462,1707810638507,-414.940832,0.00025494,2]
[313908590,1707810640818,-156.90790885,0.00025492,2]
[313908591,1707810640828,-155.90806373,0.00025492,2]
[313908592,1707810640838,-3490.73450852,0.00025494,2]
[313908593,1707810640876,-469.5097685,0.00025494,2]
[313908594,1707810640914,-10023.76871927,0.00025494,2]
[313908595,1707810640924,-23900.0,0.00025495,2]
[313908596,1707810640934,-250.0,0.00025495,2]
[313908597,1707810640944,-231.5,0.0002554,2]
[313908598,1707810640953,-2887.1,0.00025559,2]
[313908599,1707810640962,-162.35,0.00025601,2]
[313908600,1707810640972,-2418.24,0.00025603,2]
[313908601,1707810640982,-769.35,0.00025641,2]
[313908602,1707810640991,-2000.0,0.00025649,2]
[313908603,1707810641001,-500.0,0.00025687,2]
[313908604,1707810641009,-1000.0,0.0002575,2]
[313908605,1707810641018,-1852.42,0.0002575,2]
[313908606,1707810641028,-154.32,0.00025793,2]
[313908607,1707810641037,-656.99192267,0.00025798,2]
[313908608,1707810641049,-161.7532454,0.00025805,2]
[313908609,1707810641058,-250.0,0.00025845,2]
[313908610,1707810641067,-569.67,0.000259,2]
[313908611,1707810641076,-733.45,0.0002591,2]
[313908612,1707810641086,-500.0,0.00026001,2]
[313908613,1707810641096,-715.05,0.00026011,2]
[313908614,1707810641106,-710.14,0.00026011,2]
[313908615,1707810641116,-726.33,0.00026012,2]
[313908616,1707810641128,-725.84,0.00026013,2]
[313908617,1707810641138,-400.0,0.00027,3]
[313908618,1707810641147,-536.14408393,0.00027,2]
[313908619,1707810641156,-180.64,0.00027105,2]
[313908620,1707810641165,-154.32,0.00027137,2]
[313908621,1707810641175,-161.7532454,0.00027236,2]
[313908622,1707810641184,-2418.24,0.00027247,2]
[313908623,1707810641194,-475.81552691,0.0002729,2]
[313908624,1707810641203,-3224.96085548,0.0002729,2]
[313908625,1707810641212,-221.60779423,0.0002729,2]
[313908626,1707810641221,-499.76012545,0.00027291,2]
[313908627,1707810641230,-184927.520887,0.00027292,2]
[313908628,1707810641591,-991.05512265,0.00027292,2]
[313908629,1707810641603,-509.90446084,0.00027292,2]
[313908656,1707810643200,-1056.73264295,0.00027292,2]
[313908657,1707810643212,-3925.00001,0.00027292,2]
[313908658,1707810643225,-3330.0,0.00027292,2]
[313908659,1707810643312,-31563.29210895,0.00027292,2]
[313908660,1707810643322,-733.86,0.00027293,2]
[313908661,1707810643331,-719.85,0.00027294,2]
[313908662,1707810643340,-388.59684638,0.00027295,3]
[313908663,1707810643352,-1058.6130272,0.00027295,3]
[313908664,1707810643365,-173.86971735,0.00027295,3]
[313908665,1707810643374,-297.02091769,0.00027295,3]
[313908666,1707810643384,-189.61793674,0.00027295,3]
[313908667,1707810643393,-360.70979323,0.00027295,3]
[313908668,1707810643403,-287.0859116,0.00027295,3]
[313908669,1707810643415,-357.02682315,0.00027295,3]
[313908670,1707810643425,-291.14078663,0.00027295,3]
[313908671,1707810643434,-711.72,0.00027295,2]
[313908672,1707810643444,-162.35,0.00027307,2]
[313908673,1707810643453,-177.27,0.00027538,2]
[313908674,1707810643462,-166.15,0.00027548,2]
[313908675,1707810643472,-769.35,0.00027905,2]
[313908676,1707810643481,-1000.0,0.00028,28]
[313908677,1707810643491,-151.10024855,0.00028029,2]
[313908678,1707810643500,-500.0,0.00028041,2]
[313908679,1707810643509,-258.56,0.00028041,7]
[313908680,1707810643519,-177.27,0.00028086,2]
[313908681,1707810643530,-357.53979208,0.00028178,7]
[313908682,1707810643541,-1000.0,0.000282,2]
[313908683,1707810643550,-3766.44448822,0.00028378,2]
[313908684,1707810643563,-1035.98213642,0.00028378,2]
[313908685,1707810643573,-155.86670128,0.00028378,2]
[313908686,1707810643583,-1278.71655167,0.00028378,2]
[313908687,1707810643596,-655.86783963,0.00028378,2]
[313908688,1707810643609,-3510.87177402,0.00028378,2]
[313908689,1707810643618,-921.46,0.00028379,2]
[313908690,1707810643627,-348.54403906,0.0002839,2]
[313908691,1707810643636,-3580.54640724,0.00028439,2]
[313908692,1707810643646,-721.57,0.00028527,2]
[313908693,1707810643655,-2895.34830613,0.00028537,2]
[313908694,1707810643665,-533.35113375,0.00028537,2]
[313908695,1707810643675,-7532.78573865,0.00028538,2]
[313908696,1707810643688,-794.14994472,0.00028538,2]
[313908697,1707810643703,-449.80399366,0.00028538,2]
[313908698,1707810643715,-3434.62732043,0.00028538,2]
[313908699,1707810643746,-7991.64494076,0.00028538,2]
[313908700,1707810643759,-534.99325244,0.00028538,2]
[313908701,1707810643772,-2237.30399341,0.00028538,2]
[313908702,1707810643784,-1980.40151876,0.00028538,2]
[313908703,1707810643795,-293.30521316,0.00028538,2]
[313908704,1707810643808,-1373.69775017,0.00028538,2]
[313908705,1707810643824,-1458.89063676,0.00028538,2]
[313908706,1707810643836,-2023.05599502,0.00028538,2]
[313908707,1707810643848,-4972.21445759,0.00028538,2]
[313908708,1707810643860,-620.38351261,0.00028538,2]
[313908709,1707810643912,-5261.67510013,0.00028538,2]
[313908710,1707810643924,-1898.46706726,0.00028538,2]
[313908711,1707810643937,-2621.4719078,0.00028538,2]
[313908712,1707810643948,-763.43869,0.00028538,2]
[313908713,1707810643960,-1403.81036799,0.00028538,2]
[313908714,1707810643972,-17591.95984499,0.00028538,2]
[313908715,1707810643984,-301.02675859,0.00028538,2]
[313908716,1707810643996,-581.23256032,0.00028538,2]
[313908717,1707810644007,-375.86332371,0.00028538,2]
[313908719,1707810644019,-974.91771303,0.00028538,2]
[313908721,1707810644032,-601.015996,0.00028538,2]
[313908723,1707810644044,-346.11167018,0.00028538,2]
[313908725,1707810644056,-822.29078517,0.00028538,2]
[313908733,1707810646165,-228.13474814,0.00027291,2]
[313908734,1707810646177,-371.14504394,0.00027291,2]
[313908735,1707810646197,-15.5511762,0.00027291,2]
[313908736,1707810646206,-2635.7987738,0.00028538,2]
[313908737,1707810646219,-1441.13913836,0.00028538,2]
[313908738,1707810646230,-3664.36405818,0.00028538,2]
[313908739,1707810646242,-3800.37713933,0.00028538,2]
[313908740,1707810646267,-746.64327786,0.00028538,2]
[313908741,1707810646302,-155.0,0.00027291,2]
[313908742,1707810646312,-5960.8384129,0.00028538,2]
[313908743,1707810646323,-23659.96671489,0.00028538,2]
[313908744,1707810646334,-840.97767603,0.00028538,2]
[313908745,1707810646346,-5884.50189554,0.00028538,2]
[313908746,1707810646357,-16349.02593572,0.00028538,2]
[313908747,1707810646368,-1937.31003432,0.00028538,2]
[313908748,1707810646380,-4647.005672,0.00028538,2]
[313908749,1707810646401,-550.2626108,0.00028538,2]
[313908750,1707810646412,-501.18501056,0.00028538,2]
[313908751,1707810646423,-1000.0,0.00028538,2]
[313908752,1707810646435,-2560.14508689,0.00028538,2]
[313908753,1707810646446,-1452.49615645,0.00028538,2]
[313908754,1707810646458,-82237.25809666,0.00028538,2]
[313908755,1707810646473,-335.15847602,0.00028538,2]